Workbook

Sheet Planning
C3: Preparation
D4: hiking list | E4: (html)
D6: Total pack weight for backpacking and travel | H6: = | I6: =Gear!M183 -> 555 | J6: =ROUNDUP(I6/16,0) -> 35
I7: oz | J7: lb

Sheet Food and fuel
A1: USE
B2: red items are to be entered for each trip | G2: This page is generic for camping and backpacking
B3: food cal/oz from | C3: https://www.myfooddiary.com/ | H3: Food and fuel-canmping | K3: is for camping, obtained from here by selecting the number of days, calories, and whether to take ramen / peanut butter
B4: review for improvement
A6: TRIP LENGTH
A7: TYPE | B7: Enter trip type | C7: (hiking, camping, backpacking…)
B9: cal (days @) | C9: 1500 | D9: 7 | E9: =C9*D9 -> 10500 | F9: cal
B10: cal (days @) | C10: 2000 | D10: 0 | E10: =C10*D10 -> 0 | F10: cal
B11: cal (days @) | C11: 3000 | D11: 0 | E11: =C11*D11 -> 0 | F11: cal
B12: cal (days @) | C12: 4000 | D12: 0 | E12: 0 | F12: cal
B13: cal (days @) | C13: 5000 | D13: 0 | E13: 0 | F13: cal
B14: cal (days @) | C14: 6000 | D14: 0 | E14: 0 | F14: cal
E15: =SUM(E9:E14) -> 10500 | F15: sum
B16: days | D16: =SUM(D9:D14) -> 7
B17: weeks | D17: =D16/7 -> 1
B18: cal factor r/t 1500 | D18: =E15/(1500*D16) -> 1
B19: =D16 -> 7 | C19: days | D19: =B7 -> Enter trip type
A20: FOOD | C20: food | D20: packets etc | E20: unit | F20: # /wk | G20: #/trip | H20: oz/item | I20: # | J20: cal/oz | K20: oz/day | L20: cal/day | M20: take | N20: cal/day | O20: oz/day | P20: days | Q20: pack | R20: pack | S20: pack | T20: have | U20: buy | V20: buy
F21: nominal | K21: for nominal 1,500 cal/day | M21: y=1, n=0 | N21: actual | Q21: oz | R21: lb | S21: # | T21: oz | U21: oz | V21: lb
C22: bold = staples (main calorie foods)
D23: experiment with staples amounts, new spices and seasonings, sugar v stevia
B24: BREAKFAST
C25: Granola | E25: oz | J25: 116 | K25: 2 | L25: =J25*K25 -> 232 | M25: 1 | N25: =L25*M25*D18 -> 232 | O25: =K25*M25*D18 -> 2 | P25: =D16 -> 7 | Q25: =O25*P25 -> 14 | R25: =Q25/16 -> 0.875 | T25: 0 | U25: =MAX(Q25-T25,0) -> 14 | V25: =U25/16 -> 0.875
C26: Milkman | D26: pkt | E26: oz | F26: 2 | H26: 3.44 | I26: =ROUNDUP(F26*D16/7,0) -> 2 | J26: 111 | K26: =I26*H26/D16 -> 0.9828571429 | L26: =J26*K26 -> 109.0971429 | M26: 1 | N26: =L26*M26 -> 109.0971429 | O26: =K26*M26 -> 0.9828571429 | P26: =D16 -> 7 | Q26: =O26*P26 -> 6.88 | R26: 0.43 | S26: =I26*M26 -> 2 | T26: 0 | U26: =MAX(I26-T26,0)*M26 -> 2 | V26: =U26 -> 2 | W26: pkts
C27: Coffee | E27: oz | J27: 0 | K27: 1.4 | L27: =J27*K27 -> 0 | M27: 1 | N27: 0 | O27: 1.4 | P27: =D16 -> 7 | Q27: =O27*P27 -> 9.8 | R27: 0.6125 | T27: 0 | U27: =MAX(Q27-T27,0) -> 9.8 | V27: =U27/16 -> 0.6125
C28: Coffee filters (pack for one a day) | E28: oz | F28: 7 | H28: 0.004 | I28: =ROUNDUP(F28*D16/7,0) -> 7 | J28: 0 | K28: =I28*H28/D16 -> 0.004 | L28: =J28*K28 -> 0 | M28: 1 | N28: 0 | O28: 0.004 | P28: =D16 -> 7 | Q28: =O28*P28 -> 0.028 | R28: 0.00175 | S28: =I28*M28 -> 7 | T28: 0 | U28: =MAX(I28-T28,0)*M28 -> 7 | V28: =U28 -> 7 | W28: filters
C29: Teas | D29: tea bag | E29: oz | F29: 7 | H29: 0.0625 | I29: =ROUNDUP(F29*D16/7,0) -> 7 | J29: 0 | K29: =I29*H29/D16 -> 0.0625 | L29: 0 | M29: 1 | N29: 0 | O29: 0.0625 | P29: =D16 -> 7 | Q29: =O29*P29 -> 0.4375 | R29: 0.02734375 | S29: =I29*M29 -> 7 | T29: 0 | U29: =MAX(I29-T29,0)*M29 -> 7 | V29: =U29 -> 7 | W29: pkts
C30: Inst coffee-Starbucks | D30: pkt | E30: oz | F30: 7 | H30: 0.116 | I30: =ROUNDUP(F30*D16/7,0) -> 7 | J30: 0 | K30: =I30*H30/D16 -> 0.116 | L30: =J30*K30 -> 0 | M30: 1 | N30: 0 | O30: 0.116 | P30: =D16 -> 7 | Q30: =O30*P30 -> 0.812 | R30: 0.05075 | S30: =I30*M30 -> 7 | T30: 0 | U30: =MAX(I30-T30,0)*M30 -> 7 | V30: =U30 -> 7 | W30: pkts
C31: Condensed milk | D31: can | E31: oz | F31: 1 | H31: 14 | I31: =ROUNDUP(F31*D16/7,0) -> 1 | J31: 100 | K31: =I31*H31/D16 -> 2 | L31: =J31*K31 -> 200 | M31: 0 | N31: 0 | O31: 0 | P31: =D16 -> 7 | Q31: =O31*P31 -> 0 | R31: 0 | S31: =I31*M31 -> 0 | T31: 0 | U31: =MAX(I31-T31,0)*M31 -> 0 | V31: =U31 -> 0 | W31: cans
C32: Sugar | E32: oz | J32: 110 | K32: 0.5 | L32: =J32*K32 -> 55 | M32: 1 | N32: 55 | O32: 0.5 | P32: =D16 -> 7 | Q32: =O32*P32 -> 3.5 | R32: 0.21875 | S32: =I32*M32 -> 0 | T32: 0 | U32: =MAX(Q32-T32,0) -> 3.5 | V32: =U32/16 -> 0.21875
C33: Collagen - consider for camping
C34: Protein - consider for camping
B35: LUNCH, TRAIL
C36: Sesame sticks | E36: oz | J36: 155 | K36: 2 | L36: 310 | M36: 1 | N36: =L36*M36*D18 -> 310 | O36: =K36*M36*D18 -> 2 | P36: =D16 -> 7 | Q36: =O36*P36 -> 14 | R36: =Q36/16 -> 0.875 | T36: 0 | U36: =MAX(Q36-T36,0) -> 14 | V36: =U36/16 -> 0.875
C37: Nuts | E37: oz | J37: 160 | K37: 2.25 | L37: 360 | M37: 1 | N37: =L37*M37*D18 -> 360 | O37: =K37*M37*D18 -> 2.25 | P37: =D16 -> 7 | Q37: 15.75 | R37: =Q37/16 -> 0.984375 | T37: 0 | U37: =MAX(Q37-T37,0) -> 15.75 | V37: =U37/16 -> 0.984375
C38: Dried fruit | E38: oz | J38: 100 | K38: 1.5 | L38: =J38*K38 -> 150 | M38: 1 | N38: =MAX(L38*M38*D18-N39,0) -> 150 | O38: =N38/J38 -> 1.5 | P38: =D16 -> 7 | Q38: =O38*P38 -> 10.5 | R38: =Q38/16 -> 0.65625 | T38: 0 | U38: =MAX(Q38-T38,0) -> 10.5 | V38: =U38/16 -> 0.65625
C39: Bread Oroweat whole grain- for camping | E39: slice | F39: 14 | H39: 1.52 | J39: 72.39 | K39: =F39*H39/D16 -> 3.04 | L39: =J39*K39 -> 220.0656 | M39: 0 | N39: =L39*M39 -> 0 | O39: =K39*M39 -> 0 | P39: =D16 -> 7
C40: (16 slices per loaf) | M40: may set to 1 if camping
C41: Peanut butter - for camping | M41: =M39 -> 0
C42: Jelly - for camping | M42: =M39 -> 0
B44: DINNER
C45: Rice | E45: oz | J45: 115 | K45: 1 | L45: 115 | M45: 1 | N45: =L45*M45*((1+0.4*(1-M48))+(D18-1)) -> 161 | O45: =K45*M45*((1+0.4*(1-M48))+(D18-1)) -> 1.4 | P45: =D16 -> 7 | Q45: 9.8 | R45: =Q45/16 -> 0.6125 | T45: 0 | U45: =MAX(Q45-T45,0) -> 9.8 | V45: 0.6125
C46: Beans | E46: oz | J46: 102 | K46: 1 | L46: 102 | M46: 1 | N46: =L46*M46*((1+0.4*(1-M48))+(D18-1)) -> 142.8 | O46: =K46*M46*((1+0.4*(1-M48))+(D18-1)) -> 1.4 | P46: =D16 -> 7 | Q46: 9.8 | R46: =Q46/16 -> 0.6125 | T46: 0 | U46: =MAX(Q46-T46,0) -> 9.8 | V46: 0.6125
C47: TVP - textured vegetable protein (complete protein)
C48: Ramen | D48: pkt | E48: oz | F48: 2 | H48: 2.5 | I48: =ROUNDUP(F48*D16/7,0) -> 2 | J48: 102 | K48: =I48*2.5/D16 -> 0.7142857143 | L48: 72.85714286 | M48: 0 | N48: =L48*M48 -> 0 | O48: =K48*M48 -> 0 | P48: =D16 -> 7 | Q48: 0 | R48: =Q48/16 -> 0 | S48: =I48*M48 -> 0 | T48: 0 | U48: =MAX(I48-T48,0)*M48 -> 0 | V48: =U48 -> 0 | W48: pkts
C49: Broths | D49: pkt | E49: oz | F49: 5 | H49: 0.5 | I49: =ROUNDUP(F49*D16/7,0) -> 5 | J49: 70 | K49: =I49*H49/D16 -> 0.3571428571 | L49: 25 | M49: 1 | N49: 25 | O49: 0.3571428571 | P49: =D16 -> 7 | Q49: 2.5 | R49: 0.15625 | S49: =I49*M49 -> 5 | T49: 0 | U49: =MAX(I49-T49,0)*M49 -> 5 | V49: 5 | W49: pkts
C50: Jerky 3oz | D50: pkt | E50: oz | F50: 1 | H50: 3 | I50: =ROUNDUP(F50*D16/7,0) -> 1 | J50: 116 | K50: =I50*H50/D16 -> 0.4285714286 | L50: 49.71428571 | M50: 1 | N50: 49.71428571 | O50: 0.4285714286 | P50: =D16 -> 7 | Q50: 3 | R50: 0.1875 | S50: =I50*M50 -> 1 | T50: 0 | U50: =MAX(I50-T50,0)*M50 -> 1 | V50: 1 | W50: pkts
C51: Jerky 7oz | D51: pkt | E51: oz | F51: 1 | H51: 7 | I51: =ROUNDUP(F51*D16/7,0) -> 1 | J51: 116 | K51: =I51*H51/D16 -> 1 | L51: 116 | M51: 0 | N51: 0 | O51: 0 | P51: =D16 -> 7 | Q51: 0 | R51: 0 | S51: =I51*M51 -> 0 | T51: 0 | U51: =MAX(I51-T51,0)*M51 -> 0 | V51: 0 | W51: pkts
C52: Cheese, cheddar | E52: oz | J52: 120 | K52: 1 | L52: 120 | M52: 0 | N52: 0 | O52: 0 | P52: =D16 -> 7 | Q52: 0 | R52: 0 | T52: 0 | U52: =MAX(Q52-T52,0) -> 0 | V52: 0
C53: Drinks, kool-aid | D53: pkt | E53: oz | F53: 3 | H53: 0.13 | I53: =ROUNDUP(F53*D16/7,0) -> 3 | J53: 0 | K53: =I53*H53/D16 -> 0.05571428571 | L53: 0 | M53: 1 | N53: 0 | O53: 0.05571428571 | P53: =D16 -> 7 | Q53: 0.39 | R53: 0.024375 | S53: =I53*M53 -> 3 | T53: 0 | U53: =MAX(I53-T53,0) -> 3 | V53: 3 | W53: pkts
C54: Fruit bars | D54: bar | E54: oz | F54: 7 | H54: 1.2 | I54: =ROUNDUP(F54*D16/7,0) -> 7 | J54: 100 | K54: =I54*H54/D16 -> 1.2 | L54: 120 | M54: 0 | N54: =L54*M54*D18 -> 0 | O54: =K54*M54 -> 0 | P54: =D16 -> 7 | Q54: 0 | R54: 0 | T54: 0 | U54: =MAX(Q54-T54,0) -> 0 | V54: 0
C55: Energy nuggets | E55: oz | J55: 135 | K55: 1.2 | L55: 162 | M55: 1 | N55: =L55*M55 -> 162 | O55: =K55*M55 -> 1.2 | P55: =D16 -> 7 | Q55: 8.4 | R55: 0.525 | T55: 0 | U55: =MAX(Q55-T55,0) -> 8.4 | V55: 0.525
C56: Dessert (to enter) | E56: oz | J56: 0 | K56: 0 | L56: 0 | M56: 0 | N56: =L56*M56 -> 0 | O56: =K56*M56 -> 0 | P56: =D17 -> 1 | Q56: =O56*P56 -> 0 | R56: =Q56/16 -> 0 | T56: 0 | U56: =MAX(Q56-T56,0) -> 0 | V56: =U56/16 -> 0
C57: Spices and salt | D57: collection | E57: oz | F57: 1 | H57: 3 | I57: =F57*D16/7 -> 1 | J57: =0 -> 0 | K57: =I57*H57/D16 -> 0.4285714286 | L57: 0 | M57: 1 | N57: =L57*M57 -> 0 | O57: =K57*M57 -> 0.4285714286 | P57: =D16 -> 7 | Q57: =O57*P57 -> 3 | R57: 0.1875 | T57: 0 | U57: =MAX(Q57-T57,0) -> 3 | V57: =U57/16 -> 0.1875
C58: Sun dried tomatoes | D58: bulk | E58: oz | F58: 1 | H58: 2 | I58: =F58*D16/7 -> 1 | J58: =0 -> 0 | K58: =I58*H58/D16 -> 0.2857142857 | L58: 0 | M58: 1 | N58: =L58*M58 -> 0 | O58: =K58*M58 -> 0.2857142857 | P58: =D16 -> 7 | Q58: =O58*P58 -> 2 | R58: 0.125 | T58: 0 | U58: =MAX(Q58-T58,0) -> 2 | V58: 0.125
C59: Powdered tomatoes | M59: 0
C60: Food cans etc (camp) | M60: 0
E61: review this for spices adequate for three weeks… except salt, for which extra should be taken for trips over a week
E62: unit | F62: # items/wk | G62: #/trip | H62: oz/item | I62: # items | J62: cal/oz | K62: oz/day | L62: cal/day | M62: take | N62: cal/day | O62: oz/day | P62: days | Q62: oz | R62: lb | T62: have | U62: need | V62: need
F63: nominal | U63: oz | V63: lb
C64: Olive oil | D64: container | E64: oz | F64: 2 | H64: 1 | I64: =ROUNDUP(F64*D16/7,0) -> 2 | J64: 240 | K64: =I64*H64/D16 -> 0.2857142857 | L64: 68.57142857 | M64: 1 | N64: =L64*M64*D18 -> 68.57142857 | O64: 0.2857142857 | P64: =D16 -> 7 | Q64: 2 | R64: =Q64/16 -> 0.125 | T64: 0 | U64: =Q64-T64 -> 2 | V64: =U64/16 -> 0.125
C65: Vitamins and meds | D65: container system | E65: oz | F65: 1 | H65: 3.15 | J65: 0 | K65: =H65/7 -> 0.45 | L65: 0 | M65: 1 | N65: 0 | O65: 0.45 | P65: =D16 -> 7 | Q65: 3.15 | R65: =Q65/16 -> 0.196875 | T65: 0 | U65: =(Q65/4.5)-T65 -> 0.7 | V65: =U65 -> 0.7 | W65: system(s)
C66: Emergency meds | D66: container system | E66: oz | F66: 1 | H66: 2.5 | J66: 0 | K66: =H66/7 -> 0.3571428571 | L66: 0 | M66: 1 | N66: 0 | O66: 0.3571428571 | P66: =D16 -> 7 | Q66: =H66 -> 2.5 | R66: =Q66/16 -> 0.15625 | T66: 1 | U66: =(Q66/2.5)-T66 -> 0 | V66: =U66 -> 0 | W66: system(s)
C67: See | D67: Meds!A1
B68: Fresh veg | C68: Jalapenos | D68: oz | E68: oz | F68: 2 | H68: 0.5 | I68: =ROUNDUP(F68*D16/7,0) -> 2 | J68: 0 | K68: =I68*H68/D16 -> 0.1428571429 | L68: 0 | M68: 1 | N68: 0 | O68: 0.1428571429 | P68: =D16 -> 7 | Q68: 1 | R68: =Q68/16 -> 0.0625 | T68: 0 | U68: =Q68-T68 -> 1 | V68: =U68/16 -> 0.0625
C69: Garlic, pre-peeled | D69: pkt | E69: oz | F69: 1 | H69: 1.5 | I69: =ROUNDUP(F69*D16/7,0) -> 1 | J69: 0 | K69: =I69*H69/D16 -> 0.2142857143 | L69: 0 | M69: 0 | N69: 0 | O69: 0 | P69: =D16 -> 7 | Q69: 0 | R69: =Q69/16 -> 0 | T69: 0 | U69: =Q69-T69 -> 0 | V69: 0
C70: Garlic, fresh peeled | D70: head | E70: oz | F70: 1 | G70: 1 | H70: 1.75 | I70: 1 | J70: 0 | K70: =I70*H70/7 -> 0.25 | L70: 0 | M70: 1 | N70: 0 | O70: 0.25 | P70: =D16 -> 7 | Q70: 1.75 | R70: =Q70/16 -> 0.109375 | S70: =F70*D17 -> 1 | T70: 0 | U70: =MAX(S70-T70,0) -> 1 | V70: =U70 -> 1 | W70: heads
C71: Onion | D71: oz | E71: oz | F71: 1 | H71: 8 | I71: =ROUNDUP(F71*D16/7,0) -> 1 | J71: 0 | K71: =I71*H71/D16 -> 1.142857143 | L71: 0 | M71: 1 | N71: 0 | O71: 1.142857143 | P71: =D16 -> 7 | Q71: 8 | R71: =Q71/16 -> 0.5 | T71: 0 | U71: =(Q71-T71)/8 -> 1 | V71: =U71 -> 1 | W71: onions
C72: Pre-sautéed vegetables
C73: Lime | D73: oz | E73: oz | F73: 1 | H73: 2 | I73: =ROUNDUP(F73*D16/7,0) -> 1 | J73: 0 | K73: =I73*H73/D16 -> 0.2857142857 | L73: 0 | M73: 1 | N73: 0 | O73: 0.2857142857 | P73: =D16 -> 7 | Q73: 2 | R73: =Q73/16 -> 0.125 | T73: 0 | U73: =(Q73-T73)/2 -> 1 | V73: =U73 -> 1 | W73: limes
B74: Freeze dried veg (to be entered)
B75: DRY DINNER | C75: comment - rice and beans are ~ 107 and nuts and sesame stix are ~ 155 cal / oz; so, can substitute 2/3 of rice-beans by nuts-stix for 0 to 3 days / wk at time of purchase
C77: Total | N77: =SUM(N25:N65) -> 1825.182857 | O77: =SUM(O25:O73) -> 19.28535714 | Q77: =SUM(Q25:Q73) -> 134.9975 | R77: =Q77/16 -> 8.43734375
A79: BEAR VAULT | M79: 1 | Q79: 41 | R79: =Q79/16 -> 2.5625
A81: FUEL | D81: item | E81: unit | F81: # items/wk | H81: oz/item | I81: # items | M81: take | P81: days | Q81: oz | R81: lb
F82: nominal 1.4 - 2.0
C83: MSR ISOPRO | D83: 13.1 oz cannister | E83: oz | F83: 2 | H83: =13.1 -> 13.1 | I83: =INT(F83*D17)*M83 -> 2 | J83: cannisters | M83: 1 | P83: =D16 -> 7 | Q83: =H83*I83*M83 -> 26.2 | R83: =Q83/16 -> 1.6375
C84: MSR ISOPRO | D84: 7.4 oz cannister | E84: oz | F84: N/A | H84: =7.4 -> 7.4 | I84: =ROUNDUP((F83*D17-INT(F83*D17))*(8/3.9),0) -> 0 | J84: cannisters | M84: =M83 -> 1 | P84: =D16 -> 7 | Q84: =H84*I84*M84 -> 0 | R84: =Q84/16 -> 0
C86: White Gas | E86: unit | H86: oz/item | I86: # items | M86: take | P86: days | Q86: oz | R86: lb
C87: (24 oz/wk) | M87: 0 | O87: =24/7 -> 3.428571429 | P87: =D16 -> 7 | Q87: =O87*P87*M87 -> 0 | R87: =Q87/16 -> 0
D88: fuel bottle | E88: oz | H88: =33 -> 33 | I88: =INT(O87*D16/33) -> 0
D89: fuel bottle | E89: oz | H89: 20 | I89: =ROUNDUP((O87*D16/33-INT(O87*D16/33))*33/22,0) -> 2
D90: fuel bottle | E90: oz | H90: 11
C91: Total fuel | Q91: =Q83+Q84+Q87 -> 26.2 | R91: =Q91/16 -> 1.6375
A92: Total food, fuel, and bear vault | Q92: =Q77+Q79+Q91 -> 202.1975 | R92: =Q92/16 -> 12.63734375

Sheet Food and fuel-canmping
A1: USE
B2: red items are to be entered for each trip | G2: This is for camping, obtained from generic page | L2: Food and fuel
B3: food cal/oz from | C3: https://www.myfooddiary.com/ | H3: by setting 1,500 cal days = 5, 2000 cal days = 2, taking pbj and ramen; may take heavier items (cans, deserts…) and adjusting the other items
B4: review for improvement | H4: note that these numbers and items can all be varied
H5: an improved way of doing this is needed (e.g., referring to the generic page)
A6: TRIP LENGTH
A7: TYPE | B7: Enter trip type | C7: (hiking, camping, backpacking…)
B9: cal (days @) | C9: 1500 | D9: 5 | E9: =C9*D9 -> 7500 | F9: cal
B10: cal (days @) | C10: 2000 | D10: 2 | E10: =C10*D10 -> 4000 | F10: cal
B11: cal (days @) | C11: 3000 | D11: 0 | E11: 0 | F11: cal
B12: cal (days @) | C12: 4000 | D12: 0 | E12: 0 | F12: cal
B13: cal (days @) | C13: 5000 | D13: 0 | E13: 0 | F13: cal
B14: cal (days @) | C14: 6000 | D14: 0 | E14: 0 | F14: cal
E15: =SUM(E9:E14) -> 11500 | F15: sum
B16: days | D16: =SUM(D9:D14) -> 7
B17: weeks | D17: =D16/7 -> 1
B18: cal factor r/t 1500 | D18: =E15/(1500*D16) -> 1.095238095
B19: =D16 -> 7 | C19: days | D19: =B7 -> Enter trip type
A20: FOOD | C20: food | D20: packets etc | E20: unit | F20: # /wk | G20: #/trip | H20: oz/item | I20: # | J20: cal/oz | K20: oz/day | L20: cal/day | M20: take | N20: cal/day | O20: oz/day | P20: days | Q20: pack | R20: pack | S20: pack | T20: have | U20: buy | V20: buy
F21: nominal | K21: for nominal 1,500 cal/day | M21: y=1, n=0 | N21: actual | Q21: oz | R21: lb | S21: # | T21: oz | U21: oz | V21: lb
C22: bold = staples (main calorie foods)
D23: experiment with staples amounts, new spices and seasonings, sugar v stevia
B24: BREAKFAST
C25: Granola | E25: oz | J25: 116 | K25: 2 | L25: =J25*K25 -> 232 | M25: 1 | N25: =L25*M25*D18 -> 254.0952381 | O25: =K25*M25*D18 -> 2.19047619 | P25: =D16 -> 7 | Q25: =O25*P25 -> 15.33333333 | R25: =Q25/16 -> 0.9583333333 | T25: 0 | U25: =MAX(Q25-T25,0) -> 15.33333333 | V25: =U25/16 -> 0.9583333333
C26: Milkman | D26: pkt | E26: oz | F26: 2 | H26: 3.44 | I26: =ROUNDUP(F26*D16/7,0) -> 2 | J26: 111 | K26: =I26*H26/D16 -> 0.9828571429 | L26: =J26*K26 -> 109.0971429 | M26: 1 | N26: =L26*M26 -> 109.0971429 | O26: =K26*M26 -> 0.9828571429 | P26: =D16 -> 7 | Q26: =O26*P26 -> 6.88 | R26: 0.43 | S26: =I26*M26 -> 2 | T26: 0 | U26: =MAX(I26-T26,0)*M26 -> 2 | V26: =U26 -> 2 | W26: pkts
C27: Coffee | E27: oz | J27: 0 | K27: 1.4 | L27: =J27*K27 -> 0 | M27: 1 | N27: 0 | O27: 1.4 | P27: =D16 -> 7 | Q27: =O27*P27 -> 9.8 | R27: 0.6125 | T27: 0 | U27: =MAX(Q27-T27,0) -> 9.8 | V27: =U27/16 -> 0.6125
C28: Coffee filters (pack for one a day) | E28: oz | F28: 7 | H28: 0.004 | I28: =ROUNDUP(F28*D16/7,0) -> 7 | J28: 0 | K28: =I28*H28/D16 -> 0.004 | L28: =J28*K28 -> 0 | M28: 1 | N28: 0 | O28: 0.004 | P28: =D16 -> 7 | Q28: =O28*P28 -> 0.028 | R28: 0.00175 | S28: =I28*M28 -> 7 | T28: 0 | U28: =MAX(I28-T28,0)*M28 -> 7 | V28: =U28 -> 7 | W28: filters
C29: Teas | D29: tea bag | E29: oz | F29: 7 | H29: 0.0625 | I29: =ROUNDUP(F29*D16/7,0) -> 7 | J29: 0 | K29: =I29*H29/D16 -> 0.0625 | L29: 0 | M29: 1 | N29: 0 | O29: 0.0625 | P29: =D16 -> 7 | Q29: =O29*P29 -> 0.4375 | R29: 0.02734375 | S29: =I29*M29 -> 7 | T29: 0 | U29: =MAX(I29-T29,0)*M29 -> 7 | V29: =U29 -> 7 | W29: pkts
C30: Inst coffee-Starbucks | D30: pkt | E30: oz | F30: 7 | H30: 0.116 | I30: =ROUNDUP(F30*D16/7,0) -> 7 | J30: 0 | K30: =I30*H30/D16 -> 0.116 | L30: =J30*K30 -> 0 | M30: 1 | N30: 0 | O30: 0.116 | P30: =D16 -> 7 | Q30: =O30*P30 -> 0.812 | R30: 0.05075 | S30: =I30*M30 -> 7 | T30: 0 | U30: =MAX(I30-T30,0)*M30 -> 7 | V30: =U30 -> 7 | W30: pkts
C31: Condensed milk | D31: can | E31: oz | F31: 1 | H31: 14 | I31: =ROUNDUP(F31*D16/7,0) -> 1 | J31: 100 | K31: =I31*H31/D16 -> 2 | L31: =J31*K31 -> 200 | M31: 0 | N31: 0 | O31: 0 | P31: =D16 -> 7 | Q31: =O31*P31 -> 0 | R31: 0 | S31: =I31*M31 -> 0 | T31: 0 | U31: =MAX(I31-T31,0)*M31 -> 0 | V31: =U31 -> 0 | W31: cans
C32: Sugar | E32: oz | J32: 110 | K32: 0.5 | L32: =J32*K32 -> 55 | M32: 1 | N32: 55 | O32: 0.5 | P32: =D16 -> 7 | Q32: =O32*P32 -> 3.5 | R32: 0.21875 | S32: =I32*M32 -> 0 | T32: 0 | U32: =MAX(Q32-T32,0) -> 3.5 | V32: =U32/16 -> 0.21875
C33: Collagen - consider for camping
C34: Protein - consider for camping
B35: LUNCH, TRAIL
C36: Sesame sticks | E36: oz | J36: 155 | K36: 2 | L36: 310 | M36: 1 | N36: =L36*M36*D18 -> 339.5238095 | O36: =K36*M36*D18 -> 2.19047619 | P36: =D16 -> 7 | Q36: =O36*P36 -> 15.33333333 | R36: =Q36/16 -> 0.9583333333 | T36: 0 | U36: =MAX(Q36-T36,0) -> 15.33333333 | V36: =U36/16 -> 0.9583333333
C37: Nuts | E37: oz | J37: 160 | K37: 2.25 | L37: 360 | M37: 1 | N37: =L37*M37*D18 -> 394.2857143 | O37: =K37*M37*D18 -> 2.464285714 | P37: =D16 -> 7 | Q37: 17.25 | R37: =Q37/16 -> 1.078125 | T37: 0 | U37: =MAX(Q37-T37,0) -> 17.25 | V37: =U37/16 -> 1.078125
C38: Dried fruit | E38: oz | J38: 100 | K38: 1.5 | L38: =J38*K38 -> 150 | M38: 1 | N38: =MAX(L38*M38*D18-N39,0) -> 0 | O38: =N38/J38 -> 0 | P38: =D16 -> 7 | Q38: =O38*P38 -> 0 | R38: =Q38/16 -> 0 | T38: 0 | U38: =MAX(Q38-T38,0) -> 0 | V38: =U38/16 -> 0
C39: Bread Oroweat whole grain- for camping | E39: slice | F39: 14 | H39: 1.52 | J39: 72.39 | K39: =F39*H39/D16 -> 3.04 | L39: =J39*K39 -> 220.0656 | M39: 1 | N39: =L39*M39 -> 220.0656 | O39: =K39*M39 -> 3.04 | P39: =D16 -> 7
C40: (16 slices per loaf) | M40: may set to 1 if camping
C41: Peanut butter - for camping | M41: =M39 -> 1
C42: Jelly - for camping | M42: =M39 -> 1
B44: DINNER
C45: Rice | E45: oz | J45: 115 | K45: 1 | L45: 115 | M45: 1 | N45: =L45*M45*((1+0.4*(1-M48))+(D18-1)) -> 125.952381 | O45: =K45*M45*((1+0.4*(1-M48))+(D18-1)) -> 1.095238095 | P45: =D16 -> 7 | Q45: 7.666666667 | R45: =Q45/16 -> 0.4791666667 | T45: 0 | U45: =MAX(Q45-T45,0) -> 7.666666667 | V45: 0.4791666667
C46: Beans | E46: oz | J46: 102 | K46: 1 | L46: 102 | M46: 1 | N46: =L46*M46*((1+0.4*(1-M48))+(D18-1)) -> 111.7142857 | O46: =K46*M46*((1+0.4*(1-M48))+(D18-1)) -> 1.095238095 | P46: =D16 -> 7 | Q46: 7.666666667 | R46: =Q46/16 -> 0.4791666667 | T46: 0 | U46: =MAX(Q46-T46,0) -> 7.666666667 | V46: 0.4791666667
C47: TVP - textured vegetable protein (complete protein)
C48: Ramen | D48: pkt | E48: oz | F48: 2 | H48: 2.5 | I48: =ROUNDUP(F48*D16/7,0) -> 2 | J48: 102 | K48: =I48*2.5/D16 -> 0.7142857143 | L48: 72.85714286 | M48: 1 | N48: =L48*M48 -> 72.85714286 | O48: =K48*M48 -> 0.7142857143 | P48: =D16 -> 7 | Q48: 5 | R48: =Q48/16 -> 0.3125 | S48: =I48*M48 -> 2 | T48: 0 | U48: =MAX(I48-T48,0)*M48 -> 2 | V48: =U48 -> 2 | W48: pkts
C49: Broths | D49: pkt | E49: oz | F49: 5 | H49: 0.5 | I49: =ROUNDUP(F49*D16/7,0) -> 5 | J49: 70 | K49: =I49*H49/D16 -> 0.3571428571 | L49: 25 | M49: 1 | N49: 25 | O49: 0.3571428571 | P49: =D16 -> 7 | Q49: 2.5 | R49: 0.15625 | S49: =I49*M49 -> 5 | T49: 0 | U49: =MAX(I49-T49,0)*M49 -> 5 | V49: 5 | W49: pkts
C50: Jerky 3oz | D50: pkt | E50: oz | F50: 1 | H50: 3 | I50: =ROUNDUP(F50*D16/7,0) -> 1 | J50: 116 | K50: =I50*H50/D16 -> 0.4285714286 | L50: 49.71428571 | M50: 1 | N50: 49.71428571 | O50: 0.4285714286 | P50: =D16 -> 7 | Q50: 3 | R50: 0.1875 | S50: =I50*M50 -> 1 | T50: 0 | U50: =MAX(I50-T50,0)*M50 -> 1 | V50: 1 | W50: pkts
C51: Jerky 7oz | D51: pkt | E51: oz | F51: 1 | H51: 7 | I51: =ROUNDUP(F51*D16/7,0) -> 1 | J51: 116 | K51: =I51*H51/D16 -> 1 | L51: 116 | M51: 0 | N51: 0 | O51: 0 | P51: =D16 -> 7 | Q51: 0 | R51: 0 | S51: =I51*M51 -> 0 | T51: 0 | U51: =MAX(I51-T51,0)*M51 -> 0 | V51: 0 | W51: pkts
C52: Cheese, cheddar | E52: oz | J52: 120 | K52: 1 | L52: 120 | M52: 0 | N52: 0 | O52: 0 | P52: =D16 -> 7 | Q52: 0 | R52: 0 | T52: 0 | U52: =MAX(Q52-T52,0) -> 0 | V52: 0
C53: Drinks, kool-aid | D53: pkt | E53: oz | F53: 3 | H53: 0.13 | I53: =ROUNDUP(F53*D16/7,0) -> 3 | J53: 0 | K53: =I53*H53/D16 -> 0.05571428571 | L53: 0 | M53: 1 | N53: 0 | O53: 0.05571428571 | P53: =D16 -> 7 | Q53: 0.39 | R53: 0.024375 | S53: =I53*M53 -> 3 | T53: 0 | U53: =MAX(I53-T53,0) -> 3 | V53: 3 | W53: pkts
C54: Fruit bars | D54: bar | E54: oz | F54: 7 | H54: 1.2 | I54: =ROUNDUP(F54*D16/7,0) -> 7 | J54: 100 | K54: =I54*H54/D16 -> 1.2 | L54: 120 | M54: 0 | N54: =L54*M54*D18 -> 0 | O54: =K54*M54 -> 0 | P54: =D16 -> 7 | Q54: 0 | R54: 0 | T54: 0 | U54: =MAX(Q54-T54,0) -> 0 | V54: 0
C55: Energy nuggets | E55: oz | J55: 135 | K55: 1.2 | L55: 162 | M55: 1 | N55: =L55*M55 -> 162 | O55: =K55*M55 -> 1.2 | P55: =D16 -> 7 | Q55: 8.4 | R55: 0.525 | T55: 0 | U55: =MAX(Q55-T55,0) -> 8.4 | V55: 0.525
C56: Dessert (to enter) | E56: oz | J56: 0 | K56: 0 | L56: 0 | M56: 0 | N56: =L56*M56 -> 0 | O56: =K56*M56 -> 0 | P56: =D17 -> 1 | Q56: 0 | R56: 0 | T56: 0 | U56: =MAX(Q56-T56,0) -> 0 | V56: 0
C57: Spices and salt | D57: collection | E57: oz | F57: 1 | H57: 3 | I57: =F57*D16/7 -> 1 | J57: =0 -> 0 | K57: =I57*H57/D16 -> 0.4285714286 | L57: 0 | M57: 1 | N57: =L57*M57 -> 0 | O57: =K57*M57 -> 0.4285714286 | P57: =D16 -> 7 | Q57: 3 | R57: 0.1875 | T57: 0 | U57: =MAX(Q57-T57,0) -> 3 | V57: 0.1875
C58: Sun dried tomatoes | D58: bulk | E58: oz | F58: 1 | H58: 2 | I58: =F58*D16/7 -> 1 | J58: =0 -> 0 | K58: =I58*H58/D16 -> 0.2857142857 | L58: 0 | M58: 1 | N58: 0 | O58: =K58*M58 -> 0.2857142857 | P58: =D16 -> 7 | Q58: 2 | R58: 0.125 | T58: 0 | U58: =MAX(Q58-T58,0) -> 2 | V58: 0.125
C59: Powdered tomatoes | M59: 0
C60: Food cans etc (camp) | M60: 0
E61: review this for spices adequate for three weeks… except salt, for which extra should be taken for trips over a week
E62: unit | F62: # items/wk | G62: #/trip | H62: oz/item | I62: # items | J62: cal/oz | K62: oz/day | L62: cal/day | M62: take | N62: cal/day | O62: oz/day | P62: days | Q62: oz | R62: lb | T62: have | U62: need | V62: need
F63: nominal | U63: oz | V63: lb
C64: Olive oil | D64: container | E64: oz | F64: 2 | H64: 1 | I64: =ROUNDUP(F64*D16/7,0) -> 2 | J64: 240 | K64: =I64*H64/D16 -> 0.2857142857 | L64: 68.57142857 | M64: 1 | N64: =L64*M64*D18 -> 75.10204082 | O64: 0.2857142857 | P64: =D16 -> 7 | Q64: 2 | R64: =Q64/16 -> 0.125 | T64: 0 | U64: =Q64-T64 -> 2 | V64: =U64/16 -> 0.125
C65: Vitamins and meds | D65: container system | E65: oz | F65: 1 | H65: 3.15 | J65: 0 | K65: =H65/7 -> 0.45 | L65: 0 | M65: 1 | N65: 0 | O65: 0.45 | P65: =D16 -> 7 | Q65: 3.15 | R65: =Q65/16 -> 0.196875 | T65: 0 | U65: =(Q65/4.5)-T65 -> 0.7 | V65: =U65 -> 0.7 | W65: system(s)
C66: Emergency meds | D66: container system | E66: oz | F66: 1 | H66: 2.5 | J66: 0 | K66: =H66/7 -> 0.3571428571 | L66: 0 | M66: 1 | N66: 0 | O66: 0.3571428571 | P66: =D16 -> 7 | Q66: =H66 -> 2.5 | R66: =Q66/16 -> 0.15625 | T66: 1 | U66: =(Q66/2.5)-T66 -> 0 | V66: =U66 -> 0 | W66: system(s)
C67: See | D67: Meds!A1
B68: Fresh veg | C68: Jalapenos | D68: oz | E68: oz | F68: 2 | H68: 0.5 | I68: =ROUNDUP(F68*D16/7,0) -> 2 | J68: 0 | K68: =I68*H68/D16 -> 0.1428571429 | L68: 0 | M68: 1 | N68: 0 | O68: 0.1428571429 | P68: =D16 -> 7 | Q68: 1 | R68: =Q68/16 -> 0.0625 | T68: 0 | U68: =Q68-T68 -> 1 | V68: =U68/16 -> 0.0625
C69: Garlic, pre-peeled | D69: pkt | E69: oz | F69: 1 | H69: 1.5 | I69: =ROUNDUP(F69*D16/7,0) -> 1 | J69: 0 | K69: =I69*H69/D16 -> 0.2142857143 | L69: 0 | M69: 0 | N69: 0 | O69: 0 | P69: =D16 -> 7 | Q69: 0 | R69: =Q69/16 -> 0 | T69: 0 | U69: =Q69-T69 -> 0 | V69: 0
C70: Garlic, fresh peeled | D70: head | E70: oz | F70: 1 | G70: 1 | H70: 1.75 | I70: 1 | J70: 0 | K70: =I70*H70/7 -> 0.25 | L70: 0 | M70: 1 | N70: 0 | O70: 0.25 | P70: =D16 -> 7 | Q70: 1.75 | R70: =Q70/16 -> 0.109375 | S70: =F70*D17 -> 1 | T70: 0 | U70: =MAX(S70-T70,0) -> 1 | V70: =U70 -> 1 | W70: heads
C71: Onion | D71: oz | E71: oz | F71: 1 | H71: 8 | I71: =ROUNDUP(F71*D16/7,0) -> 1 | J71: 0 | K71: =I71*H71/D16 -> 1.142857143 | L71: 0 | M71: 1 | N71: 0 | O71: 1.142857143 | P71: =D16 -> 7 | Q71: 8 | R71: =Q71/16 -> 0.5 | T71: 0 | U71: =(Q71-T71)/8 -> 1 | V71: =U71 -> 1 | W71: onions
C72: Pre-sautéed vegetables
C73: Lime | D73: oz | E73: oz | F73: 1 | H73: 2 | I73: =ROUNDUP(F73*D16/7,0) -> 1 | J73: 0 | K73: =I73*H73/D16 -> 0.2857142857 | L73: 0 | M73: 1 | N73: 0 | O73: 0.2857142857 | P73: =D16 -> 7 | Q73: 2 | R73: =Q73/16 -> 0.125 | T73: 0 | U73: =(Q73-T73)/2 -> 1 | V73: =U73 -> 1 | W73: limes
B74: Freeze dried veg (to be entered)
B75: DRY DINNER | C75: comment - rice and beans are ~ 107 and nuts and sesame stix are ~ 155 cal / oz; so, can substitute 2/3 of rice-beans by nuts-stix for 0 to 3 days / wk at time of purchase
C77: Total | N77: =SUM(N25:N65) -> 1994.407641 | O77: =SUM(O25:O73) -> 21.52535714 | Q77: =SUM(Q25:Q73) -> 129.3975 | R77: =Q77/16 -> 8.08734375
A79: BEAR VAULT | M79: 1 | Q79: 41 | R79: =Q79/16 -> 2.5625
A81: FUEL | D81: item | E81: unit | F81: # items/wk | H81: oz/item | I81: # items | M81: take | P81: days | Q81: oz | R81: lb
F82: nominal 1.4 - 2.0
C83: MSR ISOPRO | D83: 13.1 oz cannister | E83: oz | F83: 2 | H83: =13.1 -> 13.1 | I83: =INT(F83*D17)*M83 -> 2 | J83: cannisters | M83: 1 | P83: =D16 -> 7 | Q83: =H83*I83*M83 -> 26.2 | R83: =Q83/16 -> 1.6375
C84: MSR ISOPRO | D84: 7.4 oz cannister | E84: oz | F84: N/A | H84: =7.4 -> 7.4 | I84: =ROUNDUP((F83*D17-INT(F83*D17))*(8/3.9),0) -> 0 | J84: cannisters | M84: =M83 -> 1 | P84: =D16 -> 7 | Q84: =H84*I84*M84 -> 0 | R84: =Q84/16 -> 0
C86: White Gas | E86: unit | H86: oz/item | I86: # items | M86: take | P86: days | Q86: oz | R86: lb
C87: (24 oz/wk) | M87: 0 | O87: =24/7 -> 3.428571429 | P87: =D16 -> 7 | Q87: =O87*P87*M87 -> 0 | R87: =Q87/16 -> 0
D88: fuel bottle | E88: oz | H88: =33 -> 33 | I88: =INT(O87*D16/33) -> 0
D89: fuel bottle | E89: oz | H89: 20 | I89: =ROUNDUP((O87*D16/33-INT(O87*D16/33))*33/22,0) -> 2
D90: fuel bottle | E90: oz | H90: 11
C91: Total fuel | Q91: =Q83+Q84+Q87 -> 26.2 | R91: =Q91/16 -> 1.6375
A92: Total food, fuel, and bear vault | Q92: =Q77+Q79+Q91 -> 196.5975 | R92: =Q92/16 -> 12.28734375

Sheet Food and fuel-backpacking
A1: USE
B2: red items are to be entered for each trip | G2: This is for backpacking, obtained from generic page | L2: Food and fuel
B3: food cal/oz from | C3: https://www.myfooddiary.com/ | H3: by setting 1,500 cal days = 5, 2000 cal days = 3, and changing nominal amounts for the main calorie items
B4: review for improvement | H4: note that these numbers and items can all be varied
H5: an improved way of doing this is needed (e.g., referring to the generic page)
A6: TRIP LENGTH
A7: TYPE | B7: Backpacking | C7: (hiking, camping, backpacking…)
B9: cal (days @) | C9: 1500 | D9: 4 | E9: =C9*D9 -> 6000 | F9: cal
B10: cal (days @) | C10: 2000 | D10: 3 | E10: =C10*D10 -> 6000 | F10: cal
B11: cal (days @) | C11: 3000 | D11: 0 | E11: 0 | F11: cal
B12: cal (days @) | C12: 4000 | D12: 0 | E12: 0 | F12: cal
B13: cal (days @) | C13: 5000 | D13: 0 | E13: 0 | F13: cal
B14: cal (days @) | C14: 6000 | D14: 0 | E14: 0 | F14: cal
E15: =SUM(E9:E14) -> 12000 | F15: sum
B16: days | D16: =SUM(D9:D14) -> 7
B17: weeks | D17: =D16/7 -> 1
B18: cal factor r/t 1500 | D18: =E15/(1500*D16) -> 1.142857143
B19: =D16 -> 7 | C19: days | D19: =B7 -> Backpacking
A20: FOOD | C20: food | D20: packets etc | E20: unit | F20: # /wk | G20: #/trip | H20: oz/item | I20: # | J20: cal/oz | K20: oz/day | L20: cal/day | M20: take | N20: cal/day | O20: oz/day | P20: days | Q20: pack | R20: pack | S20: pack | T20: have | U20: buy | V20: buy
F21: nominal | K21: for nominal 1,500 cal/day | M21: y=1, n=0 | N21: actual | Q21: oz | R21: lb | S21: # | T21: oz | U21: oz | V21: lb
C22: bold = staples (main calorie foods)
D23: experiment with staples amounts, new spices and seasonings, sugar v stevia
B24: BREAKFAST
C25: Granola | E25: oz | J25: 116 | K25: 3 | L25: =J25*K25 -> 348 | M25: 1 | N25: =L25*M25*D18 -> 397.7142857 | O25: =K25*M25*D18 -> 3.428571429 | P25: =D16 -> 7 | Q25: =O25*P25 -> 24 | R25: =Q25/16 -> 1.5 | T25: 0 | U25: =MAX(Q25-T25,0) -> 24 | V25: =U25/16 -> 1.5
C26: Milkman | D26: pkt | E26: oz | F26: 2 | H26: 3.44 | I26: =ROUNDUP(F26*D16/7,0) -> 2 | J26: 111 | K26: =I26*H26/D16 -> 0.9828571429 | L26: =J26*K26 -> 109.0971429 | M26: 1 | N26: =L26*M26 -> 109.0971429 | O26: =K26*M26 -> 0.9828571429 | P26: =D16 -> 7 | Q26: =O26*P26 -> 6.88 | R26: 0.43 | S26: 2 | T26: 3 | U26: =MAX(I26-T26,0)*M26 -> 0 | V26: =U26 -> 0 | W26: pkts
C27: Coffee | E27: oz | J27: 0 | K27: 1.4 | L27: =J27*K27 -> 0 | M27: 1 | N27: 0 | O27: 1.4 | P27: =D16 -> 7 | Q27: =O27*P27 -> 9.8 | R27: 0.6125 | T27: 0 | U27: =MAX(Q27-T27,0) -> 9.8 | V27: =U27/16 -> 0.6125
C28: Coffee filters (pack for one a day) | E28: oz | F28: 7 | H28: 0.004 | I28: =ROUNDUP(F28*D16/7,0) -> 7 | J28: 0 | K28: =I28*H28/D16 -> 0.004 | L28: =J28*K28 -> 0 | M28: 1 | N28: 0 | O28: 0.004 | P28: =D16 -> 7 | Q28: =O28*P28 -> 0.028 | R28: 0.00175 | S28: 0 | T28: 0 | U28: 0 | V28: =U28 -> 0 | W28: filters
C29: Teas | D29: tea bag | E29: oz | F29: 7 | H29: 0.0625 | I29: =ROUNDUP(F29*D16/7,0) -> 7 | J29: 0 | K29: =I29*H29/D16 -> 0.0625 | L29: 0 | M29: 1 | N29: 0 | O29: 0.0625 | P29: =D16 -> 7 | Q29: =O29*P29 -> 0.4375 | R29: 0.02734375 | S29: =I29*M29 -> 7 | T29: 8 | U29: =MAX(I29-T29,0)*M29 -> 0 | V29: =U29 -> 0 | W29: pkts
C30: Inst coffee-Starbucks | D30: pkt | E30: oz | F30: 7 | H30: 0.116 | I30: =ROUNDUP(F30*D16/7,0) -> 7 | J30: 0 | K30: =I30*H30/D16 -> 0.116 | L30: =J30*K30 -> 0 | M30: 1 | N30: 0 | O30: 0.116 | P30: =D16 -> 7 | Q30: =O30*P30 -> 0.812 | R30: 0.05075 | S30: =I30*M30 -> 7 | T30: 8 | U30: =MAX(I30-T30,0)*M30 -> 0 | V30: =U30 -> 0 | W30: pkts
C31: Condensed milk | D31: can | E31: oz | F31: 1 | H31: 14 | I31: =ROUNDUP(F31*D16/7,0) -> 1 | J31: 100 | K31: =I31*H31/D16 -> 2 | L31: =J31*K31 -> 200 | M31: 0 | N31: 0 | O31: 0 | P31: =D16 -> 7 | Q31: =O31*P31 -> 0 | R31: 0 | S31: =I31*M31 -> 0 | T31: 0 | U31: =MAX(I31-T31,0)*M31 -> 0 | V31: =U31 -> 0 | W31: cans
C32: Sugar | E32: oz | J32: 110 | K32: 0.5 | L32: =J32*K32 -> 55 | M32: 1 | N32: 55 | O32: 0.5 | P32: =D16 -> 7 | Q32: =O32*P32 -> 3.5 | R32: 0.21875 | S32: =I32*M32 -> 0 | T32: 4 | U32: =MAX(Q32-T32,0) -> 0 | V32: =U32/16 -> 0
C33: Collagen - consider for camping
C34: Protein - consider for camping
B35: LUNCH, TRAIL
C36: Sesame sticks | E36: oz | J36: 155 | K36: 3 | L36: 465 | M36: 1 | N36: =L36*M36*D18 -> 531.4285714 | O36: =K36*M36*D18 -> 3.428571429 | P36: =D16 -> 7 | Q36: =O36*P36 -> 24 | R36: =Q36/16 -> 1.5 | T36: 0 | U36: =MAX(Q36-T36,0) -> 24 | V36: =U36/16 -> 1.5
C37: Nuts | E37: oz | J37: 160 | K37: 3.5 | L37: 560 | M37: 1 | N37: =L37*M37*D18 -> 640 | O37: =K37*M37*D18 -> 4 | P37: =D16 -> 7 | Q37: 28 | R37: =Q37/16 -> 1.75 | T37: 0 | U37: =MAX(Q37-T37,0) -> 28 | V37: =U37/16 -> 1.75
C38: Dried fruit | E38: oz | J38: 100 | K38: 1.5 | L38: =J38*K38 -> 150 | M38: 1 | N38: =MAX(L38*M38*D18-N39,0) -> 171.4285714 | O38: =N38/J38 -> 1.714285714 | P38: =D16 -> 7 | Q38: =O38*P38 -> 12 | R38: =Q38/16 -> 0.75 | T38: 0 | U38: =MAX(Q38-T38,0) -> 12 | V38: =U38/16 -> 0.75
C39: Bread Oroweat whole grain- for camping | E39: slice | F39: 14 | H39: 1.52 | J39: 72.39 | K39: =F39*H39/D16 -> 3.04 | L39: =J39*K39 -> 220.0656 | M39: 0 | N39: =L39*M39 -> 0 | O39: =K39*M39 -> 0 | P39: =D16 -> 7
C40: (16 slices per loaf) | M40: may set to 1 if camping
C41: Peanut butter - for camping | M41: =M39 -> 0
C42: Jelly - for camping | M42: =M39 -> 0
B44: DINNER
C45: Rice | E45: oz | J45: 115 | K45: 1.5 | L45: 172.5 | M45: 1 | N45: =L45*M45*((1+0.4*(1-M48))+(D18-1)) -> 266.1428571 | O45: =K45*M45*((1+0.4*(1-M48))+(D18-1)) -> 2.314285714 | P45: =D16 -> 7 | Q45: 16.2 | R45: =Q45/16 -> 1.0125 | T45: 20 | U45: =MAX(Q45-T45,0) -> 0 | V45: 0
C46: Beans | E46: oz | J46: 102 | K46: 1.5 | L46: 153 | M46: 1 | N46: =L46*M46*((1+0.4*(1-M48))+(D18-1)) -> 236.0571429 | O46: =K46*M46*((1+0.4*(1-M48))+(D18-1)) -> 2.314285714 | P46: =D16 -> 7 | Q46: 16.2 | R46: =Q46/16 -> 1.0125 | T46: 20 | U46: =MAX(Q46-T46,0) -> 0 | V46: 0
C47: TVP - textured vegetable protein (complete protein)
C48: Ramen | D48: pkt | E48: oz | F48: 2 | H48: 2.5 | I48: =ROUNDUP(F48*D16/7,0) -> 2 | J48: 102 | K48: =I48*2.5/D16 -> 0.7142857143 | L48: 72.85714286 | M48: 0 | N48: =L48*M48 -> 0 | O48: =K48*M48 -> 0 | P48: =D16 -> 7 | Q48: 0 | R48: =Q48/16 -> 0 | S48: =I48*M48 -> 0 | T48: 0 | U48: =MAX(I48-T48,0)*M48 -> 0 | V48: =U48 -> 0 | W48: pkts
C49: Broths | D49: pkt | E49: oz | F49: 5 | H49: 0.5 | I49: =ROUNDUP(F49*D16/7,0) -> 5 | J49: 70 | K49: =I49*H49/D16 -> 0.3571428571 | L49: 25 | M49: 1 | N49: 25 | O49: 0.3571428571 | P49: =D16 -> 7 | Q49: 2.5 | R49: 0.15625 | S49: =I49*M49 -> 5 | T49: 0 | U49: =MAX(I49-T49,0)*M49 -> 5 | V49: 5 | W49: pkts
C50: Jerky 3oz | D50: pkt | E50: oz | F50: 1 | H50: 3 | I50: =ROUNDUP(F50*D16/7,0) -> 1 | J50: 116 | K50: =I50*H50/D16 -> 0.4285714286 | L50: 49.71428571 | M50: 1 | N50: 49.71428571 | O50: 0.4285714286 | P50: =D16 -> 7 | Q50: 3 | R50: 0.1875 | S50: =I50*M50 -> 1 | T50: 0 | U50: =MAX(I50-T50,0)*M50 -> 1 | V50: 1 | W50: pkts
C51: Jerky 7oz | D51: pkt | E51: oz | F51: 1 | H51: 7 | I51: =ROUNDUP(F51*D16/7,0) -> 1 | J51: 116 | K51: =I51*H51/D16 -> 1 | L51: 116 | M51: 0 | N51: 0 | O51: 0 | P51: =D16 -> 7 | Q51: 0 | R51: 0 | S51: =I51*M51 -> 0 | T51: 0 | U51: =MAX(I51-T51,0)*M51 -> 0 | V51: 0 | W51: pkts
C52: Cheese, cheddar | E52: oz | J52: 120 | K52: 1 | L52: 120 | M52: 0 | N52: 0 | O52: 0 | P52: =D16 -> 7 | Q52: 0 | R52: 0 | T52: 0 | U52: =MAX(Q52-T52,0) -> 0 | V52: 0
C53: Drinks, kool-aid | D53: pkt | E53: oz | F53: 3 | H53: 0.13 | I53: =ROUNDUP(F53*D16/7,0) -> 3 | J53: 0 | K53: =I53*H53/D16 -> 0.05571428571 | L53: 0 | M53: 1 | N53: 0 | O53: 0.05571428571 | P53: =D16 -> 7 | Q53: 0.39 | R53: 0.024375 | S53: =I53*M53 -> 3 | T53: 0 | U53: =MAX(I53-T53,0) -> 3 | V53: 3 | W53: pkts
C54: Fruit bars | D54: bar | E54: oz | F54: 7 | H54: 1.2 | I54: =ROUNDUP(F54*D16/7,0) -> 7 | J54: 100 | K54: =I54*H54/D16 -> 1.2 | L54: 120 | M54: 0 | N54: =L54*M54*D18 -> 0 | O54: =K54*M54 -> 0 | P54: =D16 -> 7 | Q54: 0 | R54: 0 | T54: 0 | U54: =MAX(Q54-T54,0) -> 0 | V54: 0
C55: Energy nuggets | E55: oz | J55: 135 | K55: 1.2 | L55: 162 | M55: 1 | N55: =L55*M55 -> 162 | O55: =K55*M55 -> 1.2 | P55: =D16 -> 7 | Q55: 8.4 | R55: 0.525 | T55: 0 | U55: =MAX(Q55-T55,0) -> 8.4 | V55: 0.525
C56: Dessert (to enter) | E56: oz | J56: 0 | K56: 0 | L56: 0 | M56: 0 | N56: =L56*M56 -> 0 | O56: =K56*M56 -> 0 | P56: =D17 -> 1 | Q56: 0 | R56: 0 | T56: 0 | U56: =MAX(Q56-T56,0) -> 0 | V56: 0
C57: Spices and salt | D57: collection | E57: oz | F57: 1 | H57: 3 | I57: =F57*D16/7 -> 1 | J57: =0 -> 0 | K57: =I57*H57/D16 -> 0.4285714286 | L57: 0 | M57: 1 | N57: =L57*M57 -> 0 | O57: =K57*M57 -> 0.4285714286 | P57: =D16 -> 7 | Q57: 3 | R57: 0.1875 | T57: 0 | U57: =MAX(Q57-T57,0) -> 3 | V57: 0.1875
C58: Sun dried tomatoes | D58: bulk | E58: oz | F58: 1 | H58: 2 | I58: =F58*D16/7 -> 1 | J58: =0 -> 0 | K58: =I58*H58/D16 -> 0.2857142857 | L58: 0 | M58: 1 | N58: 0 | O58: =K58*M58 -> 0.2857142857 | P58: =D16 -> 7 | Q58: 2 | R58: 0.125 | T58: 0 | U58: =MAX(Q58-T58,0) -> 2 | V58: 0.125
C59: Powdered tomatoes | M59: 0
C60: Food cans etc (camp) | M60: 0
E61: review this for spices adequate for three weeks… except salt, for which extra should be taken for trips over a week
E62: unit | F62: # items/wk | G62: #/trip | H62: oz/item | I62: # items | J62: cal/oz | K62: oz/day | L62: cal/day | M62: take | N62: cal/day | O62: oz/day | P62: days | Q62: oz | R62: lb | T62: have | U62: need | V62: need
F63: nominal | U63: oz | V63: lb
C64: Olive oil | D64: container | E64: oz | F64: 2 | H64: 1 | I64: =ROUNDUP(F64*D16/7,0) -> 2 | J64: 240 | K64: =I64*H64/D16 -> 0.2857142857 | L64: 68.57142857 | M64: 1 | N64: =L64*M64*D18 -> 78.36734694 | O64: 0.2857142857 | P64: =D16 -> 7 | Q64: 2 | R64: =Q64/16 -> 0.125 | T64: 0 | U64: =Q64-T64 -> 2 | V64: =U64/16 -> 0.125
C65: Vitamins and meds | D65: container system | E65: oz | F65: 1 | H65: 3.15 | J65: 0 | K65: =H65/7 -> 0.45 | L65: 0 | M65: 1 | N65: 0 | O65: 0.45 | P65: =D16 -> 7 | Q65: 3.15 | R65: =Q65/16 -> 0.196875 | T65: 0 | U65: =(Q65/4.5)-T65 -> 0.7 | V65: =U65 -> 0.7 | W65: system(s)
C66: Emergency meds | D66: container system | E66: oz | F66: 1 | H66: 2.5 | J66: 0 | K66: =H66/7 -> 0.3571428571 | L66: 0 | M66: 1 | N66: 0 | O66: 0.3571428571 | P66: =D16 -> 7 | Q66: =H66 -> 2.5 | R66: =Q66/16 -> 0.15625 | T66: 1 | U66: =(Q66/2.5)-T66 -> 0 | V66: =U66 -> 0 | W66: system(s)
C67: See | D67: Meds!A1
B68: Fresh veg | C68: Jalapenos | D68: oz | E68: oz | F68: 2 | H68: 0.5 | I68: =ROUNDUP(F68*D16/7,0) -> 2 | J68: 0 | K68: =I68*H68/D16 -> 0.1428571429 | L68: 0 | M68: 1 | N68: 0 | O68: 0.1428571429 | P68: =D16 -> 7 | Q68: 1 | R68: =Q68/16 -> 0.0625 | T68: 0 | U68: =Q68-T68 -> 1 | V68: =U68/16 -> 0.0625
C69: Garlic, pre-peeled | D69: pkt | E69: oz | F69: 1 | H69: 1.5 | I69: =ROUNDUP(F69*D16/7,0) -> 1 | J69: 0 | K69: =I69*H69/D16 -> 0.2142857143 | L69: 0 | M69: 0 | N69: 0 | O69: 0 | P69: =D16 -> 7 | Q69: 0 | R69: =Q69/16 -> 0 | T69: 0 | U69: =Q69-T69 -> 0 | V69: 0
C70: Garlic, fresh peeled | D70: head | E70: oz | F70: 1 | G70: 1 | H70: 1.75 | I70: 1 | J70: 0 | K70: =I70*H70/7 -> 0.25 | L70: 0 | M70: 1 | N70: 0 | O70: 0.25 | P70: =D16 -> 7 | Q70: 1.75 | R70: =Q70/16 -> 0.109375 | S70: =F70*D17 -> 1 | T70: 0 | U70: =MAX(S70-T70,0) -> 1 | V70: =U70 -> 1 | W70: heads
C71: Onion | D71: oz | E71: oz | F71: 1 | H71: 8 | I71: =ROUNDUP(F71*D16/7,0) -> 1 | J71: 0 | K71: =I71*H71/D16 -> 1.142857143 | L71: 0 | M71: 1 | N71: 0 | O71: 1.142857143 | P71: =D16 -> 7 | Q71: 8 | R71: =Q71/16 -> 0.5 | T71: 0 | U71: =(Q71-T71)/8 -> 1 | V71: =U71 -> 1 | W71: onions
C72: Pre-sautéed vegetables
C73: Lime | D73: oz | E73: oz | F73: 1 | H73: 2 | I73: =ROUNDUP(F73*D16/7,0) -> 1 | J73: 0 | K73: =I73*H73/D16 -> 0.2857142857 | L73: 0 | M73: 1 | N73: 0 | O73: 0.2857142857 | P73: =D16 -> 7 | Q73: 2 | R73: =Q73/16 -> 0.125 | T73: 0 | U73: =(Q73-T73)/2 -> 1 | V73: =U73 -> 1 | W73: limes
B74: Freeze dried veg (to be entered)
B75: DRY DINNER | C75: comment - rice and beans are ~ 107 and nuts and sesame stix are ~ 155 cal / oz; so, can substitute 2/3 of rice-beans by nuts-stix for 0 to 3 days / wk at time of purchase
C77: Total | N77: =SUM(N25:N65) -> 2721.950204 | O77: =SUM(O25:O73) -> 25.93535714 | Q77: =SUM(Q25:Q73) -> 181.5475 | R77: =Q77/16 -> 11.34671875
A79: BEAR VAULT | M79: 1 | Q79: 41 | R79: =Q79/16 -> 2.5625
A81: FUEL | D81: item | E81: unit | F81: # items/wk | H81: oz/item | I81: # items | M81: take | P81: days | Q81: oz | R81: lb
F82: nominal 1.4 - 2.0
C83: MSR ISOPRO | D83: 13.1 oz cannister | E83: oz | F83: 2 | H83: =13.1 -> 13.1 | I83: =INT(F83*D17)*M83 -> 2 | J83: cannisters | M83: 1 | P83: =D16 -> 7 | Q83: =H83*I83*M83 -> 26.2 | R83: =Q83/16 -> 1.6375
C84: MSR ISOPRO | D84: 7.4 oz cannister | E84: oz | F84: N/A | H84: =7.4 -> 7.4 | I84: =ROUNDUP((F83*D17-INT(F83*D17))*(8/3.9),0) -> 0 | J84: cannisters | M84: =M83 -> 1 | P84: =D16 -> 7 | Q84: =H84*I84*M84 -> 0 | R84: =Q84/16 -> 0
C86: White Gas | E86: unit | H86: oz/item | I86: # items | M86: take | P86: days | Q86: oz | R86: lb
C87: (24 oz/wk) | M87: 0 | O87: =24/7 -> 3.428571429 | P87: =D16 -> 7 | Q87: =O87*P87*M87 -> 0 | R87: =Q87/16 -> 0
D88: fuel bottle | E88: oz | H88: =33 -> 33 | I88: =INT(O87*D16/33) -> 0
D89: fuel bottle | E89: oz | H89: 20 | I89: =ROUNDUP((O87*D16/33-INT(O87*D16/33))*33/22,0) -> 2
D90: fuel bottle | E90: oz | H90: 11
C91: Total fuel | Q91: =Q83+Q84+Q87 -> 26.2 | R91: =Q91/16 -> 1.6375
A92: Total food, fuel, and bear vault | Q92: =Q77+Q79+Q91 -> 248.7475 | R92: =Q92/16 -> 15.54671875

Sheet Gear
A2: Trip length | B2: Days= | C2: 7 | E2: items in red to be entered per trip
B3: Weeks = | C3: =C2/7 -> 1
B4: Months = | C4: =C2*12/365 -> 0.2301369863
E5: eliminate much of this junk | H5: some items depend on length of trip
B6: #people= | C6: 1 | D6: one or two
A8: Travel-camping material is in a blue font
K10: all weights are per person | V10: Modifications to consider
D11: 1=take, 0=no | E11: unit | F11: oz/unit | G11: units/day | H11: units /week | I11: units/month | J11: weeks | K11: /trip | L11: units (total) | M11: oz (total) | N11: lb | R11: cal/week | S11: cal/day | T11: cal/lb | W11: Simplification
A13: =K2/C2 -> 0 | B13: Breakfast | L13: needed | M13: needed | W13: More than one person, assuming similar personal gear…
A14: target | C14: Granola (~116 cal/oz) | D14: 1 | E14: cup | F14: 3.5 | H14: 3.5 | J14: =C3 -> 1 | L14: =M14/F14 ->  | M14: =D14*F14*H14*J14*#REF! ->  | N14: =M14/16 ->  | R14: =H14*F14*Q14*D14 -> 0 | S14: =R14/7 -> 0 | T14: =Q14*16 -> 0 | X14: … and shared gear, e.g., one stove / four people
A15: mean cal/day | C15: Milk powder | D15: 0 | E15: cup | F15: 6.5 | H15: =#REF! ->  | J15: =C3 -> 1 | L15: =M15/F15 ->  | M15: =D15*F15*H15*J15 ->  | N15: =M15/16 ->  | R15: =H15*F15*Q15*D15 ->  | S15: =R15/7 ->  | T15: =Q15*16 -> 0 | W15: Automated entry of new items
C16: Milkman | D16: 1 | E16: packet | F16: 3.44 | H16: =ROUNDUP((#REF!+#REF!+#REF!+#REF!+#REF!)/4,0) ->  | L16: =H16*C3*D16 ->  | M16: =D16*H16*3.44 ->  | R16: =Q16*M16 ->  | S16: =R16/7 ->  | T16: 0
A17: =SUM(#REF!) ->  | C17: Coffee | D17: 1 | E17: oz | F17: 1 | G17: 1.2 | H17: =G17*7 -> 8.4 | J17: =C3 -> 1 | L17: 8.4 | M17: =D17*F17*H17*J17 -> 8.4 | N17: 0.525 | R17: =H17*F17*Q17*D17 -> 0 | S17: 0 | T17: 0
A18: days | G18: 5 heaping tbsp | V18: =N180 -> 19.084375
C19: Coffee, freeze dried, consider
C20: Sugar (~110 cal/oz) | D20: 1 | E20: oz | F20: 1 | H20: 3.5 | J20: =C3 -> 1 | L20: =M20/F20 -> 3.5 | M20: =D20*F20*H20*J20 -> 3.5 | N20: 0.21875 | R20: =H20*F20*Q20*D20 -> 0 | S20: 0 | T20: 0
C21: Vitamins, meds, ibuprofen | D21: 1 | E21: oz | F21: 1 | H21: 1 | J21: =C3 -> 1 | L21: =M21/F21 -> 1 | M21: =D21*F21*H21*J21 -> 1 | N21: =M21/16 -> 0.0625 | R21: =H21*F21*Q21*D21 -> 0 | S21: 0 | T21: 0 | V21: qd-4 ibu 1 allegra 100mg losartan 25 mg hctz 1(b,C,D,E,Glucosamine, Multi)
A22: may sustitute | C22: Teas | D22: 1 | E22: pkt | F22: 0.0625 | H22: 7 | J22: =C3 -> 1 | L22: 7 | M22: =D22*F22*H22*J22 -> 0.4375 | N22: =M22/16 -> 0.02734375 | R22: =H22*F22*Q22*D22 -> 0 | S22: 0 | T22: 0
C23: Drinks, KoolAid | D23: 1 | E23: pkt | F23: 0.13 | H23: 3 | J23: =C3 -> 1 | L23: =ROUND(H23*J23,0) -> 3 | M23: =L23*F23 -> 0.39 | N23: =M23/16 -> 0.024375 | R23: =H23*F23*Q23*D23 -> 0 | S23: =R23/7 -> 0 | T23: =Q23*16 -> 0
A24: amounts | C24: Condensed milk | D24: 0 | E24: can | F24: 14 | H24: 1 | J24: =C3 -> 1 | K24: 1 | L24: 0 | M24: =D24*F24*H24*J24 -> 0 | N24: =M24/16 -> 0 | R24: =D24*Q24*F24/J24 -> 0 | S24: 0 | T24: 0
B25: Trail
C26: Sesame sticks | D26: 1 | E26: oz | F26: 1 | H26: 7 | J26: =C3 -> 1 | L26: =M26/F26 ->  | M26: =D26*F26*H26*J26*#REF! ->  | N26: =M26/16 ->  | R26: =H26*F26*Q26*D26 -> 0 | S26: 0 | T26: 0
A27: 1 cup = 2 2/3 fist | C27: Nuts (Peanuts, Cashews ~160 cal/oz) | D27: 1 | E27: oz | F27: 1 | H27: 10.5 | J27: =C3 -> 1 | L27: =M27/F27 ->  | M27: =D27*F27*H27*J27*#REF! ->  | R27: =H27*F27*Q27*D27 -> 0 | S27: 0 | T27: 0
C28: Dried fruit | D28: 1 | E28: oz | F28: 1 | H28: 14 | J28: =C3 -> 1 | M28: =D28*F28*H28*J28*#REF! ->  | R28: =H28*F28*Q28*D28 -> 0 | S28: 0 | T28: 0
B29: Dinner
C30: Rice, instant | D30: 1 | E30: oz | F30: 1 | H30: 7 | J30: =C3 -> 1 | L30: =M30/F30 ->  | M30: =D30*F30*H30*J30*#REF! ->  | N30: =M30/16 ->  | R30: =H30*F30*Q30*D30 -> 0 | S30: 0 | T30: 0
C31: Rice, regular, to work on
C32: Beans | D32: 1 | E32: oz | F32: 1 | H32: 7 | J32: =C3 -> 1 | L32: =M32/F32 ->  | M32: =D32*F32*H32*J32*#REF! ->  | N32: =M32/16 ->  | R32: =H32*F32*Q32*D32 -> 0 | S32: 0 | T32: 0
C33: Ramen | D33: 1 | E33: packet | F33: 2.5 | H33: =ROUNDUP(2*#REF!,0) ->  | J33: =C3 -> 1 | L33: =ROUND(H33*J33,0) ->  | M33: =L33*F33 ->  | T33: 0
C34: Broths | D34: 1 | E34: packet | F34: 0.5 | H34: 4 | J34: =C3 -> 1 | L34: 5 | M34: =L34*F34 -> 2.5 | N34: 0.15625 | R34: 0 | S34: 0 | T34: 0
C35: Jerky | D35: 1 | E35: packet | F35: 3 | H35: 1 | J35: =C3 -> 1 | L35: =ROUNDUP(H35*J35,0) -> 1 | M35: 3 | N35: 0.1875 | R35: 0 | S35: 0 | T35: 0
C36: Fruit bars | D36: 1 | E36: bar | F36: 1.2 | H36: 7 | J36: =C3 -> 1 | L36: =ROUNDUP(H36*J36*#REF!,0) ->  | R36: 0 | S36: 0 | T36: 0
C37: Turmeric | D37: 0 | E37: oz | F37: 1 | H37: 1 | J37: =C3 -> 1 | L37: =M37/F37 -> 0 | M37: =D37*F37*H37*J37 -> 0 | N37: 0 | R37: 0 | S37: 0 | T37: 0
C38: Jalapenos | D38: 1 | E38: jalapeno | F38: 0.5 | H38: 2 | J38: =C3 -> 1 | L38: =ROUND(H38*J38,0) -> 2 | M38: =L38*F38 -> 1 | N38: 0.0625 | R38: 0 | S38: 0 | T38: 0
C39: Garlic, packets | D39: 1 | E39: packet | F39: 1.5 | H39: 1 | J39: =C3 -> 1 | L39: =ROUND(H39*J39,0) -> 1 | M39: =L39*F39 -> 1.5 | N39: 0.09375 | R39: 0 | S39: 0 | T39: 0
C40: Onion, thumb dia | D40: 1 | E40: onion | F40: 6 | H40: 1 | J40: =C3 -> 1 | L40: 1 | M40: 6 | N40: 0.375 | R40: 0 | S40: 0 | T40: 0
C41: Lime | D41: 1 | E41: lime | F41: 2 | H41: 1 | J41: =C3 -> 1 | L41: 1 | M41: 2 | N41: 0.125 | R41: 0 | S41: 0 | T41: 0
C42: Spice collection(review) | D42: 1 | E42: oz | F42: 1 | H42: 3 | J42: =C3 -> 1 | L42: 3 | M42: 3 | N42: 0.1875 | R42: 0 | S42: 0 | T42: 0
C43: Cajun seasoning etc | L43: 0 | M43: 0
C44: Salt | D44: 1 | E44: oz | F44: 1 | H44: 2 | J44: =C3 -> 1 | L44: 2 | M44: 2 | N44: 0.125 | R44: 0 | S44: 0 | T44: 0
C45: Olive oil (~240 cal/oz) | D45: 1 | E45: oz | F45: 1.5 | H45: =2*#REF! ->  | J45: =C3 -> 1 | R45: =H45*F45*Q45*D46 ->  | T45: 0
B46: Stuff sacks | D46: 0 | E46: sack | F46: 4.5 | K46: =J7 -> 0 | L46: =K46 -> 0 | M46: =D46*F46*L46 -> 0 | N46: 0
B47: Bearvault | D47: 1 | E47: vault | F47: 41 | K47: 1 | L47: =K47 -> 1 | M47: =D47*F47*L47 -> 41 | N47: =M47/16 -> 2.5625
A48: Food, total (one person) | M48: 0 | N48: =M48/16 -> 0 | R48: 0 | S48: 0 | T48: 0
C49: Backpacker’s food—am = granola and/or alt | trail = nuts & fruits | pm = rice, beans, dry/fresh veg | and variety—try out soups | crackers and more | Kool-Aid
C50: Granola alternates and supplements—Cream of wheat savory | and with sugar and blueberries | and made-up mixes from co-op bulk
A51: Cooking | C51: Bold = current use
C52: Utensils | D52: 1 | E52: item(s) | F52: 6 | K52: 1 | M52: =D52*F52 -> 6 | N52: =M52/16 -> 0.375
C53: Coffee filters | D53: 1 | E53: item(s) | F53: 0.05 | G53: 1 | L53: =C2 -> 7 | M53: =D53*F53*G53*L53 -> 0.35 | N53: =M53/16 -> 0.021875
C54: Stove-MSR Dragonfly | D54: 0 | E54: item(s) | F54: 14.5 | K54: 1 | M54: =D54*F54*K54/C6 -> 0 | N54: =M54/16 -> 0
C55: Stove-Pocket rocket with base | D55: 1 | E55: item(s) | F55: 4 | K55: 1 | M55: =D55*F55*K55/C6 -> 4 | N55: =M55/16 -> 0.25
C56: Heat shield | D56: 0 | E56: item(s) | F56: 2.5 | K56: 1 | M56: =D56*F56*K56/C6 -> 0 | N56: 0
C57: Pot, titanium | D57: 1 | E57: item(s) | F57: 6 | K57: 1 | M57: =D57*F57*K57/C6 -> 6 | N57: 0.375
C58: Pot, stainless, 0.50 gal | D58: 0 | E58: item(s) | F58: 20 | K58: 1 | M58: =D58*F58*K58/C6 -> 0 | N58: 0
C59: Pot, stainless, 0.25 gal | D59: 0 | E59: item(s) | F59: 13 | K59: 1 | M59: =D59*F59*K59/C6 -> 0 | N59: 0
C60: Fuel bottle, 1 l tr/ 33oz | D60: 0 | E60: item(s) | F60: 7.6 | K60: =ROUNDUP(H64*C6/32,0) -> 1 | M60: =D60*F60*K60/C6 -> 0 | N60: =M60/16 -> 0
C61: Fuel bottle, 591 ml / 20oz | D61: =0 -> 0 | E61: item(s) | F61: 6 | K61: 1 | M61: 0 | N61: =M61/16 -> 0
C62: Fuel bottle, 325 ml / 11oz | D62: 0 | E62: item(s) | F62: 4 | K62: 1 | M62: 0 | N62: =M62/16 -> 0
C64: Fuel | E64: fl oz | F64: 0.7 | H64: =(32*(1+(C6-1)*0.5)*C3)/C6 -> 32 | M64: 0 | N64: =M64/16 -> 0
D66: 1=take, 0=no | E66: unit | F66: oz/unit | G66: units/day | H66: units /week | I66: units/month | J66: weeks | K66: /trip | L66: units (total) | M66: oz (total) | N66: lb
C67: MSR Pocket Rocket Deluxe | D67: 0 | E67: item(s) | F67: 2.9 | G67: currently, a one person item | K67: 1 | M67: =D67*F67 -> 0 | N67: =M67/16 -> 0
C68: MSR cannisters 7.4 oz | D68: 0 | E68: item(s) | F68: 7.4 | J68: =C3 -> 1 | L68: =ROUNDUP((J69*H69)-INT(J69*H69),0) -> 1 | M68: 0 | N68: 0
C69: MSR cannisters 13.1 oz | D69: 1 | E69: item(s) | F69: 13.1 | H69: 1.4 | J69: =C3 -> 1 | L69: =INT(J69*H69) -> 1 | M69: 0 | N69: =M69/16 -> 0
A70: Cooking… total | M70: =SUM(M52:M69) -> 16.35 | N70: 1.021875
A72: Hiking, travel | I72: include in pack weight 1 = yes, 0 = no
C73: Backpack, Osprey, Exos 58 | D73: 1 | E73: item(s) | F73: 36 | I73: 1 | M73: =D73*F73*I73 -> 36 | N73: =M73/16 -> 2.25
C74: Pack Cover, Osprey, Large | D74: 0 | E74: item(s) | F74: 3 | I74: 1 | M74: 0 | N74: =M74/16 -> 0
C75: Backpack, Osprey, Argon 85M | D75: 0 | E75: item(s) | F75: 104 | I75: 1 | M75: 0 | N75: =M75/16 -> 0
C76: Olive Jansport daypack | D76: 0 | E76: item(s) | F76: 17 | I76: 1 | M76: 0 | N76: =M76/16 -> 0
C77: Sea to Summit light daypack | D77: 1 | E77: item(s) | F77: 2.5 | I77: 1 | M77: =D77*F77*I77 -> 2.5 | N77: =M77/16 -> 0.15625
C78: Binoculars | D78: 0 | E78: item(s) | F78: 8.5 | I78: 1 | M78: 0 | N78: =M78/16 -> 0
C79: Rifle, .30-06 | D79: 0 | E79: item(s) | F79: 144 | I79: 1 | M79: 0 | N79: =M79/16 -> 0
C80: Shoes, ankle high (new) | D80: 0 | E80: item(s) | F80: 32 | I80: 0 | M80: =D80*F80*I80 -> 0 | N80: 0
C81: Shoes, ankle high | D81: 0 | E81: item(s) | F81: 48 | I81: 0 | M81: 0 | N81: 0
C82: Shoes, running | D82: 0 | E82: item(s) | F82: 30 | I82: 0 | M82: 0 | N82: 0
C83: Sneakers | D83: 0 | E83: item(s) | F83: 29 | I83: 1 | M83: 0 | N83: 0
C84: Sandals, Keen | D84: 1 | E84: item(s) | F84: 27 | I84: 1 | M84: =D84*F84*I84 -> 27 | N84: =M84/16 -> 1.6875
C85: Sandals for water crossing | D85: 1 | E85: item(s) | F85: 18 | I85: 1 | M85: 18 | N85: 1.125
C86: Sandals, Teva | D86: 0 | E86: item(s) | F86: 24 | I86: 1 | M86: =D86*F86*I86 -> 0 | N86: =M86/16 -> 0
C87: Shoes, dress | D87: 0 | E87: item(s) | F87: 26 | I87: 1 | M87: 0 | N87: =M87/16 -> 0
C88: MSR Snowshoes | D88: 0 | E88: item(s) | F88: 59 | I88: 1 | M88: 0 | N88: 0
C89: … MSR Snowshoe extebsuibs | D89: 0 | E89: item(s) | F89: 17 | I89: 1 | M89: 0 | N89: 0
C90: Cross-country skis and poles | D90: 0 | E90: item(s) | F90: 118 | I90: 1 | M90: 0 | N90: 0
C91: Crampons | D91: 0 | E91: item(s) | F91: 40.75 | I91: 1 | M91: 0 | N91: 0
C92: Trekking poles, Leki | D92: 1 | E92: item(s) | F92: 20 | I92: 0 | M92: 0 | N92: =M92/16 -> 0
C93: Insect netting (head) | D93: 1 | E93: item(s) | F93: 1.5 | I93: 1 | M93: 1.5 | N93: 0.09375
C94: Pouch-misc items | D94: 1 | E94: item(s) | F94: 14 | I94: 1 | M94: 14 | N94: 0.875
C95: Albuterol | D95: 0 | E95: item(s) | F95: 1.5 | I95: 1 | M95: 0 | N95: 0
C96: Advair | D96: 0 | E96: item(s) | F96: 2 | I96: 1 | M96: =D96*F96*I96 -> 0 | N96: =M96/16 -> 0
C97: Maps, paper | D97: 1 | E97: item(s) | F97: 5 | I97: 1 | M97: 5 | N97: 0.3125
C98: Simple manual | D98: 0 | E98: item(s) | F98: 1.5 | G98: (included in maps, paper) | I98: 1 | M98: 0 | N98: 0
C99: Camera | D99: 0 | E99: item(s) | F99: 6.5 | I99: 1 | M99: 0 | N99: 0
C100: Phone with charger | D100: 1 | E100: item(s) | F100: 12 | I100: 1 | M100: 12 | N100: 0.75
C101: Battery pack | D101: 1 | E101: item(s) | F101: 7 | G101: (two if more than a week) | I101: 1 | L101: =ROUNDUP(C2/7,0) -> 1 | M101: =D101*F101*L101 -> 7 | N101: =M101/16 -> 0.4375
C102: Cards, check, cash, key | D102: 1 | E102: item(s) | F102: 2 | G102: (included in pouch) | I102: 1 | M102: 2 | N102: 0.125
C103: Batteries | D103: 0 | E103: item(s) | F103: 4.5 | I103: 1 | M103: 0 | N103: =M103/16 -> 0
C104: Watch | D104: 1 | E104: item(s) | F104: 1 | I104: 1 | M104: 1 | N104: 0.0625
C105: Plastic bags - storage, waterproofing | D105: 0 | E105: item(s) | F105: 0.5 | G105: (included in med sack, below) | I105: 1 | M105: 0 | N105: 0
C107: H2O filter straw | D107: 1 | E107: item(s) | F107: 2.5 | I107: 1 | M107: =D107*F107*I107 -> 2.5 | N107: 0.15625
C108: 64 oz Platypus H2O bladder | D108: 0 | E108: item(s) | F108: 6 | I108: 1 | M108: =D108*F108*I108 -> 0 | N108: 0
C109: 32 oz Nalgene H2O bottle | D109: 1 | E109: item(s) | F109: 7 | I109: 1 | M109: =D109*F109*I109 -> 7 | N109: 0.4375
C110: 32 oz Body Armor H2O | D110: 1 | E110: item(s) | F110: 2 | I110: 1 | M110: =D110*F110*I110 -> 2 | N110: =M110/16 -> 0.125
C111: Consider pre-prepped b'fast cont'r
C112: H2O for platypus | D112: 0 | E112: oz | F112: 1 | G112: 64 | I112: 1 | M112: =D112*F112*G112*I112 -> 0 | N112: 0
C113: H2O for nalgene | D113: 0 | E113: oz | F113: 1 | G113: 32 | I113: 1 | M113: =D113*F113*G113*I113 -> 0 | N113: 0
A114: Hiking, total | M114: =SUM(M73:M113) -> 137.5 | N114: 8.59375
A116: Camping
C117: Tent (Nemo, Elite 1p) + footprint | D117: 1 | E117: items(s) | F117: 32 | L117: =ABS(C6-2) -> 1 | M117: =D117*F117*L117 -> 32 | N117: =M117/16 -> 2 | O117: (one person)
C118: Tent (Sierra Designs, Flashlight) | D118: 0 | E118: items(s) | F118: 78 | L118: =ABS(C6-1) -> 0 | M118: =D118*F118*L118/2 -> 0 | N118: 0 | O118: (two people)
C119: Bivvy | D119: 0 | E119: items(s) | F119: 17 | M119: =D119*F119 -> 0 | N119: 0
C120: Bivvy - OR | D120: 0 | E120: items(s) | F120: 21 | M120: =D120*F120 -> 0 | N120: 0
C121: Tarp 9'x9' | D121: 0 | E121: items(s) | F121: 33 | M121: =D121*F121 -> 0 | N121: 0
C122: Tarp 8'x6' | D122: 0 | E122: items(s) | F122: 25 | M122: =D122*F122 -> 0 | N122: 0
C123: Hyperlite tarp | D123: 0 | E123: items(s) | F123: 20 | M123: =D123*F123 -> 0 | N123: =M123/16 -> 0
C124: Ridge 10 stakes, lines 10 - 12', guys 4 -6'
C125: Ground sheet (separate) | D125: 0 | E125: items(s) | F125: 13 | M125: =D125*F125 -> 0 | N125: 0
C126: Footprint - MSR
C127: Sleeping bag, Western Mountaineering | D127: 1 | E127: items(s) | F127: 18 | M127: =D127*F127 -> 18 | N127: =M127/16 -> 1.125
C128: Sleeping bag, Marmot | D128: 0 | E128: items(s) | F128: 34 | M128: 0 | N128: =M128/16 -> 0
C129: Sea to Summit Liner 'reactor' | D129: 0 | E129: items(s) | F129: 11 | M129: =D129*F129 -> 0 | N129: =M129/16 -> 0
C130: Sea to Summit Liner 'reactor - extreme' | D130: 0 | E130: items(s) | F130: 15 | M130: =D130*F130 -> 0 | N130: =M130/16 -> 0
C131: Ground pad | D131: 1 | E131: items(s) | F131: 7.5 | M131: 7.5 | N131: 0.46875
C132: Rope, straps | D132: 0 | E132: items(s) | F132: 3.5 | G132: (included in med sack, below) | M132: 0 | N132: 0
C133: Med sack | D133: 1 | E133: items(s) | F133: 20 | M133: 20 | N133: 1.25
C134: Toilet with mouthwash, bug spray | D134: 1 | E134: items(s) | F134: 10 | G134: (3.5 oz without mouthwash and bug spray) | M134: 10 | N134: 0.625
A135: Camping, total | M135: =SUM(M117:M134) -> 87.5 | N135: 5.46875
A137: Clothes | B137: * summer, general | D137: Count | G137: 1=take, 0=no | I137: include in pk wt, 0=no
C138: Lite cap shirt* | D138: 1 | E138: item(s) | F138: 5.5 | G138: 0 | I138: 1 | M138: =D138*F138*G138*I138 -> 0 | N138: =M138/16 -> 0
C139: Lite silk shirt | D139: 1 | E139: item(s) | F139: 3.5 | G139: 1 | I139: 1 | M139: =D139*F139*G139*I139 -> 3.5 | N139: =M139/16 -> 0.21875
C140: Lite cap shirt, tee / long sleeve* | D140: 1 | E140: item(s) | F140: 3.5 | G140: 0 | I140: 1 | M140: 0 | N140: =M140/16 -> 0
C141: Cap shirt, grey, hooded (OR)* | D141: 1 | E141: item(s) | F141: 4.5 | G141: 1 | I141: 1 | M141: 4.5 | N141: 0.28125
C142: Cap shirt, naval blue, hooded (OR)* | D142: 1 | E142: item(s) | F142: 4.5 | G142: 0 | I142: 1 | M142: =D142*F142*G142*I142 -> 0 | N142: =M142/16 -> 0
C143: Arcteryx Lightweight Hoodie | D143: 1 | E143: item(s) | F143: 11 | G143: 1 | I143: 1 | M143: =D143*F143*G143*I143 -> 11 | N143: =M143/16 -> 0.6875
C144: Steel grey warm shirt* | D144: 1 | E144: item(s) | F144: 10 | G144: 0 | I144: 1 | M144: 0 | N144: 0
C145: Mid wt cap z-neck | D145: 1 | E145: item(s) | F145: 9 | G145: 0 | I145: 1 | M145: 0 | N145: 0
C146: Collared shirt / dress | D146: 1 | E146: item(s) | F146: 8 | G146: 0 | I146: 1 | M146: 0 | N146: 0
C147: Blk wind wall jacket, N Face | D147: 1 | E147: item(s) | F147: 26.5 | G147: 0 | I147: 1 | M147: 0 | N147: 0
C148: Blk lined jacket, N Face | D148: 1 | E148: item(s) | F148: 18 | G148: 0 | I148: 1 | M148: 0 | N148: 0
C149: Red wind wall jacket, Marmot | D149: 1 | E149: item(s) | F149: 23.5 | G149: 0 | I149: 1 | M149: 0 | N149: 0
C150: Rain jacket, Marmot* | D150: 1 | E150: item(s) | F150: 12.25 | G150: 0 | I150: 1 | M150: 0 | N150: 0
C151: Rain jacket, Northace* | D151: 1 | E151: item(s) | F151: 12 | G151: 1 | I151: 1 | M151: =D151*F151*G151*I151 -> 12 | N151: =M151/16 -> 0.75
C152: Rain jacket, Columbia | D152: 1 | E152: item(s) | F152: 18 | G152: 0 | I152: 1 | M152: 0 | N152: 0
C153: Down jacket, blue | D153: 1 | E153: item(s) | F153: 24 | G153: 0 | I153: 1 | M153: 0 | N153: =M153/16 -> 0
C154: Dress jacket | D154: 1 | E154: item(s) | F154: 26.5 | G154: 0 | I154: 1 | M154: 0 | N154: 0
C155: Gloves, lite | D155: 1 | E155: item(s) | F155: 1 | G155: 1 | I155: 1 | M155: 1 | N155: 0.0625
C156: Sun-visor* | D156: 1 | E156: item(s) | F156: 2 | G156: 1 | I156: 1 | M156: 2 | N156: =M156/16 -> 0.125
C157: Hat | D157: 1 | E157: item(s) | F157: 5 | G157: 0 | I157: 1 | M157: 0 | N157: 0
C158: Lite cap long u'wear* | D158: 1 | E158: item(s) | F158: 4 | G158: 0 | I158: 0 | M158: 0 | N158: 0
C159: Lite cap long u'wear, spare* | D159: 1 | E159: item(s) | F159: 4 | G159: 0 | I159: 1 | M159: =D159*F159*G159*I159 -> 0 | N159: 0
C160: Lite silk long u'wear* | D160: 1 | E160: item(s) | F160: 4.5 | G160: 1 | I160: 1 | M160: 4.5 | N160: =M160/16 -> 0.28125
C161: Mid wt cap u'wear | D161: 1 | E161: item(s) | F161: 8 | G161: 0 | I161: 1 | M161: =D161*F161*G161*I161 -> 0 | N161: 0
C162: Short u'wear* | D162: 1 | E162: item(s) | F162: 4 | G162: 0 | I162: 1 | M162: =D162*F162*G162*I162 -> 0 | N162: 0
C163: Shorts* | D163: 1 | E163: item(s) | F163: 10 | G163: 0 | I163: 1 | M163: =D163*F163*G163*I163 -> 0 | N163: =M163/16 -> 0
C164: Shorts (swim)* | D164: 1 | E164: item(s) | F164: 7 | G164: 1 | I164: 1 | M164: 7 | N164: 0.4375
C165: Hiking pants* | D165: 1 | E165: item(s) | F165: 15 | G165: 0 | I165: 1 | M165: 0 | N165: 0
C166: Belt* | D166: 1 | E166: item(s) | F166: 2 | G166: 0 | I166: 0 | M166: 0 | N166: 0
C167: Jeans | D167: 1 | E167: item(s) | F167: 24 | G167: 0 | I167: 1 | M167: 0 | N167: 0
C168: Rain pants Northface* | D168: 1 | E168: item(s) | F168: 9 | G168: 0 | I168: 1 | M168: 0 | N168: 0
C169: Heavy socks* | D169: 2 | E169: item(s) | F169: 4.5 | G169: 1 | I169: 1 | M169: =D169*F169*G169*I169 -> 9 | N169: 0.5625
C170: Intermediate sox | D170: 1 | E170: item(s) | F170: 3 | G170: 0 | I170: 1 | M170: =D170*F170*G170*I170 -> 0 | N170: 0
C171: Lite sox* | D171: 1 | E171: item(s) | F171: 2 | G171: 0 | I171: 1 | M171: 0 | N171: 0
C172: Bandana* | D172: 1 | E172: item(s) | F172: 1.5 | G172: 1 | I172: 1 | M172: 1.5 | N172: 0.09375
C173: MSR Towel* | D173: 1 | E173: item(s) | F173: 2 | G173: 0 | I173: 1 | M173: 0 | N173: 0
C174: Spade | D174: 1 | E174: item(s) | F174: 3 | G174: 1 | I174: 1 | M174: =D174*F174*G174*I174 -> 3 | N174: =M174/16 -> 0.1875
C175: Stuff sacks with straps and liners (2)* | D175: 1 | E175: item(s) | F175: 5 | G175: 1 | I175: 1 | M175: 5 | N175: 0.3125
C176: … sack liner* | D176: 1 | E176: item(s) | F176: 1 | G176: 0 | H176: incl above | I176: 1 | M176: 0 | N176: 0
C177: … sack straps* | D177: 1 | E177: item(s) | F177: 1 | G177: 0 | H177: incl above | I177: 1 | M177: 0 | N177: 0
A178: Clothes, total | M178: =SUM(M138:M177) -> 64 | N178: 4
A180: Total pack | M180: =M48+M70+M114+M135+M178 -> 305.35 | N180: =M180/16 -> 19.084375
A182: Total with food, fuel, and bear vault | M182: =M180+'Food and fuel-backpacking'!Q92 -> 554.0975 | N182: =M182/16 -> 34.63109375
A183: Total with food, fuel, and bear vault | K183: Rounded | M183: =ROUNDUP(M182,0) -> 555 | N183: =ROUNDUP(N182,0) -> 35

Sheet Needs
B3: ultralight backpacking, minimize all gear and supplies
B5: replenish toilet-spices-pens-paper-batteries, garbage bag for wet items, powdered tomatoes, lite cook-sack, instant coffee
B7: head-lamp, fire, lite air mattress, mosquito net, sandals only, Gore-Tex boots, flip phone, shorten tooth brush
B9: skills—expedition planning, wilderness apps

Sheet Nutrition for hiking
C4: Nutrient needs—protein, carbs, fats, vitamins, minerals, roughage, and water
D5: Also see nutrition: | F5: diet and exercise.xlsm
D7: Hydration
D8: ¾ liters of water before hiking; ¼ liter frequently during; and 1 – 2 liters after
D10: Vitamins and meds | G10: Meds sheet
D11: With supper (to save morning time) or breakfast
D13: Meals
E14: Breakfast | F14: (the higher figures are for 4000 cal / day)
F15: About 500 - 800 cal; some protein, low fat and fiber
F16: On a rest day, eat less calories, more fiber
F17: Protein and collagen supplements
E19: Trail
F20: About 180 - 270 cal (45 - 67 g) per hour - 1440 cal for 6 hours of hiking
E21: While hiking, 70% carbs, 30% protein and fat
E22: Eat grains and legumes regularly, in small amounts for energy and muscle rebuilding
E23: Replenish electrolytes—salty snacks, salt tabs, electrolyte drinks / supplements
E25: Supper
E26: Eat 30 – 45 minutes after hiking—when the body is receptive to replenishment
F27: Higher fat content than breakfast and trail - for digestive ease and sleeping warmth
F28: Aim for 500 - 1600 cal (2500 - 4000 cal / day)
F29: Backpacker.com recommends - carb:protein = 4:1
E31: Before sleep
E32: Dessert of not too concentrated sugar and fluids with the evening meal
E33: Examples: fruit bars, energy nuggets, granola …
E34: Sugar free alternative to dessert—nuts, sesame sticks …

Sheet Meds
C3: Emergency meds for a week
D4: Allergy 1 week
E5: Benadryl 25 mg, 14 tabs
E6: Allegra 180 mg, 7 tabs
D7: Pain management
E8: Tylenol 500 mg, 42 tabs
F9: 1000 mg TID
E10: Ibuprofen 200 mg, 42 tabs
F11: 400 mg TID
C13: Meds and vitamins for a week - consider spares to allow trip extension
D14: Vitamins and meds – all 1 tab a day
D15: Glucosamine, Multi
D16: A, B, B12, D, E,
D17: Fish oil
D18: Losartan 100 mg
D19: Ibuprofen 200 mg, up to 4 tabs a day
C21: Vitamins for a short trip
D22: Glucosamine - 1 a day
D23: Multivitamines - 2 a day
G30: G

Sheet Health
C3: Nutrition
D4: Quality | E4: fluids early, whole grains, legumes, fresh vegetables and some fruit, leafy greens (especially cabbage) for calcium
E5: olive oil, occasional fish, eggs, and infrequent lean meats, roughage, herbs, spices, supplements
E6: Eliminate or minimize
E7: added sugar, added salt, over processed foods (read labels, allow occasional white rice), alcohol
E8: most animal fat and oils (except olive), dairy (except non-fat), coffee, excess snacking and eating out
D10: Amount | E10: No excess; experiment with portions, minimize snacks and eating out | L10: Fast—whole day or till evening—Sat
D12: Routine | E12: begin the day with food before coffee, eat lunch and small evening snack early
C14: Exercise
D15: aerobic—walk and bike | G15: hiit | H15: plyometrics
D16: flexibility—stretch | P16: N
D17: weights
D18: self-defense
C20: Sleep plan
D21: Aim - 7 to eight hours a night
E22: Allow more to ensure 7 - 8 hours; more for restorative sleep
E23: When sleep is regular, may allow 7 hours
E24: Experiment with (i) amount (ii) time (iii) multiple sleep periods
E25: Sleep and rise early, aim for the same time every day, e.g., 7pm ro 2am
C27: Medical
D28: Meds | F28: Reduce losartan if bp < 120 / 80; consider beta-blocker; consider synthroid; consider other hormone
D29: Appointment | F29: Moles, feet, joint-bone-muscle health, mental health evaluation
D30: Cancer | F30: cancers.html
